bitfinex-derivatives/quotes_ETHF0:USTF0_20250627
["timestamp","ask_amount","ask_price","bid_price","bid_amount"]
[1751057942306,7.3164,2425.0,2424.8,0.82445]
[1751057943406,7.3164,2425.0,2424.9,0.82443]
[1751057943706,0.82443,2424.9,2424.8,0.82444]
[1751057943905,7.3164,2425.0,2424.8,0.82444]
[1751057944096,7.3164,2425.0,2424.9,0.82443]
[1751057944801,6.492,2425.0,2424.9,0.82443]
[1751057945811,6.51388,2425.1,2424.9,0.82443]
[1751057946000,6.492,2425.0,2424.9,0.82443]
[1751057947612,6.521,2425.0,2424.9,0.82443]
[1751057947813,7.34539,2425.0,2424.9,0.82443]
[1751057948113,6.521,2425.0,2424.9,0.82443]
[1751057950106,4.99,2425.1,2425.0,0.82439]
[1751057950307,3.2078,2425.2,2425.1,0.82436]
[1751057950709,3.2078,2425.2,2425.1,2.16336]
[1751057953409,3.2078,2425.2,2425.1,0.82436]
[1751057958815,3.2078,2425.2,2425.1,2.23416]
[1751057960316,7.34527,2425.4,2425.3,0.82429]
[1751057960710,0.82427,2425.4,2425.3,0.82429]
[1751057960910,7.34427,2425.4,2425.3,0.82429]
[1751057962614,7.34423,2425.5,2425.4,0.82423]
[1751057962817,7.34423,2425.5,2425.4,4.64212583]
[1751057965123,7.34423,2425.5,2425.4,45.44212583]
[1751057965420,6.52,2425.5,2425.4,45.44212583]
[1751057965718,7.34422,2425.5,2425.4,45.44212583]
[1751057966519,7.34422,2425.5,2425.4,44.61789583]
[1751057967722,7.34422,2425.5,2425.4,45.44215583]
[1751057968425,7.34422,2425.5,2425.4,44.61789583]
[1751057968730,7.34422,2425.5,2425.4,45.44215583]
[1751057968923,6.52,2425.5,2425.4,45.44215583]
[1751057971020,0.82422,2425.5,2425.4,45.44215583]
[1751057971222,55.51951,2425.6,2425.5,0.82422]
[1751057971419,55.51951,2425.6,2425.4,44.61789583]
[1751057971620,0.82422,2425.5,2425.4,45.44213583]
[1751057972126,55.51951,2425.6,2425.5,0.82422]
[1751057972329,0.82422,2425.5,2425.4,45.44212583]
[1751057972926,55.51951,2425.6,2425.5,0.82422]
[1751057973424,54.6953,2425.6,2425.5,0.82422]
[1751057973623,54.6953,2425.6,2425.5,1.52112]
[1751057973817,0.82419,2425.7,2425.6,0.82419]
[1751057974020,8.02689,2425.7,2425.6,0.82419]
[1751057974228,0.82419,2425.6,2425.5,1.5211]
[1751057975115,0.6827,2425.7,2425.6,0.82419]
[1751057975322,6.52,2425.9,2425.8,0.82412]
[1751057975615,7.48309315,2425.9,2425.8,4.64201583]
[1751057976021,0.96309315,2425.9,2425.8,4.64201583]
[1751057976324,0.96309315,2425.9,2425.8,29.76601583]
[1751057976927,0.6646,2426.1,2426.0,0.82405]
[1751057977123,2.4514494,2426.1,2426.0,4.64194583]
[1751057978728,1.6274294,2426.1,2426.0,4.64194583]
[1751057980131,0.9628294,2426.1,2426.0,4.64194583]
[1751057980432,8.93153973,2426.6,2426.0,13.45984166]
[1751057980632,3.13803973,2426.7,2426.6,0.82385]
[1751057980832,7.1645,2426.7,2426.6,0.82385]
[1751057981230,0.6855,2426.7,2426.6,0.82385]
[1751057981729,0.6855,2426.7,2426.6,41.62385]
[1751057982032,0.6986,2426.8,2426.7,0.82382]
[1751057982234,1.52238,2426.8,2426.7,0.82382]
[1751057982536,1.52238,2426.8,2426.6,41.62383]
[1751057982928,3.8933,2426.9,2426.8,0.82378]
[1751057983536,4.71705,2426.9,2426.8,0.701]
[1751057984033,4.71705,2426.9,2426.8,1.52478]
[1751057984331,3.2078,2426.9,2426.8,1.52478]
[1751057984538,6.478,2427.0,2426.9,0.82375]
[1751057984727,6.478,2427.0,2426.9,4.64164583]
[1751057985329,7.30171,2427.0,2426.9,3.81789583]
[1751057985536,0.82371,2427.0,2426.9,3.81789583]
[1751057993039,0.82375,2426.9,2426.8,0.701]
[1751057993642,0.82378,2426.8,2426.7,25.116]
[1751057993841,0.82377,2426.9,2426.7,25.93982]
[1751057994032,0.82377,2426.9,2426.7,29.75771583]
[1751057994631,0.82377,2426.9,2426.8,0.82378]
[1751057994843,0.82377,2426.9,2426.7,29.75769583]
[1751057996339,0.82377,2426.9,2426.7,28.93389583]
[1751057996652,0.82377,2426.9,2426.7,32.14169583]
[1751057996944,0.82377,2426.9,2426.8,0.82378]
[1751057997242,0.82377,2426.9,2426.8,4.64167583]
[1751057997436,0.82374,2427.0,2426.8,4.64167583]
[1751057997946,0.82372,2427.0,2426.8,3.81789583]
[1751057998136,0.82372,2427.0,2426.8,4.64166583]
[1751057998944,0.82375,2426.9,2426.8,4.64166583]
[1751057999144,0.82375,2426.9,2426.8,3.81789583]
[1751057999746,0.82375,2426.9,2426.8,4.64167583]
[1751058000643,0.82374,2427.0,2426.8,4.64167583]
[1751058000844,0.82374,2427.0,2426.8,3.81789583]
[1751058001048,1.5223,2427.1,2426.9,0.82373]
[1751058001239,1.5223,2427.1,2427.0,3.81789583]
[1751058001435,4.99,2427.4,2427.0,8.30519166]
[1751058001635,7.38748766,2428.3,2427.3,3.81789583]
[1751058001636,1.48719,2427.7,2427.3,3.81789583]
[1751058001846,1.48719,2427.7,2427.5,3.81789583]
[1751058002142,0.82351,2427.6,2427.5,25.089]
[1751058002440,2.94421,2427.6,2427.5,25.089]
[1751058008043,0.82354,2427.5,2427.4,0.6694]
[1751058010751,1.53013,2427.6,2427.4,1.49297]
[1751058010951,1.53013,2427.6,2427.5,3.81789583]
[1751058011346,7.8872,2427.9,2427.5,3.81789583]
[1751058011547,0.82345,2427.8,2427.7,4.64137583]
[1751058011744,0.82343,2427.9,2427.8,0.7131]
[1751058011948,7.1305,2428.0,2427.8,0.7131]
[1751058012150,0.82341,2427.9,2427.8,0.7131]
[1751058013645,0.82341,2427.9,2427.8,1.53654]
[1751058013848,0.82341,2427.9,2427.8,0.7131]
[1751058014054,0.82341,2427.9,2427.8,1.53654]
[1751058014352,0.82341,2427.9,2427.8,0.7131]
[1751058015253,0.82341,2427.9,2427.8,1.53654]
[1751058015455,0.82341,2427.9,2427.8,0.7131]
[1751058016154,0.82341,2427.9,2427.8,1.53654]
[1751058016346,0.82341,2427.9,2427.8,0.7131]
[1751058018557,0.82341,2427.9,2427.8,41.5131]
[1751058018848,0.6685,2428.0,2427.9,0.82341]
[1751058019057,1.49188,2428.0,2427.9,3.81789583]
[1751058019654,0.6685,2428.0,2427.9,3.81789583]
[1751058019954,1.49187,2428.0,2427.9,3.81789583]
[1751058020157,0.82337,2428.0,2427.9,3.81789583]
[1751058020961,0.82337,2428.0,2427.9,29.71830583]
[1751058021551,4.6003,2428.1,2428.0,0.82337]
[1751058021853,0.82332,2428.2,2428.0,0.82335]
[1751058022157,0.82332,2428.2,2428.1,3.81789583]
[1751058022656,0.82332,2428.2,2428.0,1.3492]
[1751058022657,0.82337,2428.0,2427.9,3.2078]
[1751058022965,0.82348,2427.7,2427.6,3.2078]
[1751058023153,0.82348,2427.7,2427.6,28.2848]
[1751058023461,0.82348,2427.7,2427.6,69.0848]
[1751058023648,0.82348,2427.7,2427.6,3.2078]
[1751058024052,0.82348,2427.7,2427.6,7.02569583]
[1751058024254,0.82348,2427.7,2427.6,3.2078]
[1751058025267,0.82354,2427.5,2427.4,47.0608305]
[1751058025461,0.82354,2427.5,2427.4,69.69389583]
[1751058027862,0.82358,2427.4,2427.3,2.44293467]
[1751058028068,0.82365,2427.2,2427.1,25.076]
[1751058028268,0.82365,2427.2,2427.1,27.52437827]
[1751058028564,0.82365,2427.2,2427.1,68.32437827]
[1751058028777,0.82365,2427.2,2427.1,72.1422741]
[1751058029070,0.82365,2427.2,2427.1,69.69389583]
[1751058029367,0.82365,2427.2,2427.1,72.1438435]
[1751058030665,0.82365,2427.2,2427.1,2.44994767]
[1751058031867,0.82365,2427.2,2427.1,6.2678435]
[1751058032668,0.82365,2427.2,2427.1,31.3638435]
[1751058033371,0.82368,2427.1,2427.0,2.44994767]
[1751058033558,4.03148,2427.1,2427.0,2.44994767]
[1751058033955,0.82371,2427.0,2426.9,43.24994767]
[1751058034156,0.82371,2427.0,2426.9,40.8]
[1751058034157,2.90021,2427.0,2426.9,40.8]
[1751058034361,0.82375,2426.9,2426.8,27.55594767]
[1751058034557,2.89415,2426.9,2426.8,27.55594767]
[1751058034762,2.89415,2426.9,2426.8,65.906]
[1751058034962,2.89415,2426.9,2426.8,40.8]
[1751058035165,2.89415,2426.9,2426.8,65.91]
[1751058035666,0.686,2427.0,2426.8,3.81789583]
[1751058035860,0.82374,2427.0,2426.8,31.3778435]
[1751058036062,0.82374,2427.0,2426.9,40.8]
[1751058037266,9.6698,2427.1,2426.6,3.81789583]
[1751058037564,0.82377,2426.9,2426.8,3.81789583]
[1751058037761,0.82377,2426.9,2426.8,44.61789583]
[1751058039063,0.82373,2427.0,2426.8,44.61789583]
[1751058039670,6.462,2427.1,2426.8,44.61789583]
[1751058039867,6.462,2427.1,2427.0,3.81789583]
[1751058040672,7.28568,2427.1,2427.0,3.81789583]
[1751058042771,0.82368,2427.1,2427.0,3.81789583]
[1751058043569,8.549,2427.2,2426.9,26.72745]
[1751058044072,0.8237,2427.1,2426.9,26.72743]
[1751058045670,0.8237,2427.1,2426.9,25.9037]
[1751058046170,0.8237,2427.1,2426.9,26.72744]
[1751058046372,0.82371,2427.0,2426.9,25.9037]
[1751058046566,0.8237,2427.1,2426.9,26.72745]
[1751058047874,0.82371,2427.0,2426.9,25.9037]
[1751058048569,0.8237,2427.1,2426.9,26.72745]
[1751058048768,0.82371,2427.0,2426.9,25.9037]
[1751058048975,0.8237,2427.1,2426.9,25.9037]
[1751058049671,0.8237,2427.1,2426.9,26.72745]
[1751058051967,0.8237,2427.1,2427.0,0.82371]
[1751058052167,0.8237,2427.1,2426.9,26.72743]
[1751058053277,0.8237,2427.1,2426.9,67.52743]
[1751058053577,0.8237,2427.1,2427.0,0.82371]
[1751058054473,0.82368,2427.1,2426.9,67.52743]
[1751058055674,9.37267,2427.2,2427.0,0.82371]
[1751058056071,0.82368,2427.1,2427.0,0.82371]
[1751058056264,0.82371,2427.0,2426.9,67.52743]
[1751058056576,0.8237,2427.1,2426.9,67.52743]
[1751058057477,0.8237,2427.1,2426.9,26.72743]
[1751058059177,0.82371,2427.0,2426.9,26.72743]
[1751058059378,0.8237,2427.1,2426.9,26.72743]
[1751058059578,0.8237,2427.1,2426.9,26.01673]
[1751058059775,4.03151,2427.0,2426.8,4.64166583]
[1751058059978,0.82382,2426.7,2426.6,2.44994767]
[1751058060181,0.8238,2426.8,2426.5,25.8463]
[1751058060384,0.6683,2426.8,2426.5,29.12010767]
[1751058060681,1.49211,2426.8,2426.5,29.12010767]
[1751058060875,0.6683,2426.8,2426.5,3.15224767]
[1751058061078,0.82383,2426.7,2426.5,29.12110767]
[1751058061280,0.82385,2426.6,2426.5,28.29724767]
[1751058061476,3.2078,2426.7,2426.5,0.7023]
[1751058061776,0.82385,2426.6,2426.5,25.143]
[1751058062581,0.82388,2426.5,2426.4,27.59294767]
[1751058062980,0.82388,2426.5,2426.4,2.44994767]
[1751058063277,0.82392,2426.4,2426.3,43.24994767]
[1751058063480,3.2078,2426.7,2426.3,68.39394767]
[1751058063676,0.82386,2426.6,2426.5,3.81789583]
[1751058063870,0.82391,2426.5,2426.3,72.2118435]
[1751058064077,0.82391,2426.5,2426.3,73.0357935]
[1751058064482,3.2078,2426.4,2426.1,2.44994767]
[1751058064677,0.82399,2426.2,2426.1,2.44994767]
[1751058065087,0.82402,2426.1,2426.0,43.24994767]
[1751058065381,0.82402,2426.1,2425.9,28.42303767]
[1751058065583,0.82402,2426.1,2425.9,27.59894767]
[1751058065886,0.82402,2426.1,2425.9,68.39894767]
[1751058067172,0.82405,2426.0,2425.9,40.8]
[1751058067686,0.82405,2426.0,2425.8,36.37645883]
[1751058067887,0.82404,2426.1,2425.8,37.20057883]
[1751058068090,0.82404,2426.1,2425.9,25.144]
[1751058068784,0.82405,2426.0,2425.9,25.144]
[1751058068985,1.51965,2426.0,2425.9,25.144]
[1751058069373,0.6956,2426.0,2425.9,25.144]
[1751058069580,1.51965,2426.0,2425.9,25.144]
[1751058070087,0.82409,2425.9,2425.8,25.8704]
[1751058070284,0.82409,2425.9,2425.8,0.7284]
[1751058070491,0.82414,2425.8,2425.7,25.135]
[1751058071489,2.18141,2425.9,2425.7,25.96814]
[1751058071690,0.82411,2425.9,2425.7,25.96814]
[1751058073587,0.82411,2425.9,2425.7,29.78603583]
[1751058073803,8.04068,2426.0,2425.8,0.82412]
[1751058073990,0.82411,2425.9,2425.7,31.18983583]
[1751058074186,0.82416,2425.7,2425.6,0.6747]
[1751058074386,0.82414,2425.8,2425.6,26.63789]
[1751058075092,0.82416,2425.7,2425.6,26.63789]
[1751058075589,0.82416,2425.7,2425.6,25.8137]
[1751058076392,0.82416,2425.7,2425.6,26.63789]
[1751058076893,0.82414,2425.8,2425.6,26.63789]
[1751058078187,0.82414,2425.8,2425.7,25.131]
[1751058081600,0.82415,2425.7,2425.6,1.49888]
[1751058081895,0.82411,2425.9,2425.7,0.82415]
[1751058082096,0.82412,2425.8,2425.6,26.61987]
[1751058082893,0.82416,2425.7,2425.6,25.7957]
[1751058083498,0.82415,2425.8,2425.6,26.61988]
[1751058083893,0.82415,2425.8,2425.6,25.7957]
[1751058084095,0.82415,2425.7,2425.6,0.6747]
[1751058084295,0.82415,2425.7,2425.3,2.44994767]
[1751058084296,13.51769583,2425.7,2425.3,2.44994767]
[1751058084601,0.82429,2425.3,2425.2,0.7226]
[1751058085493,9.6998,2425.4,2425.2,0.7226]
[1751058085701,3.2078,2425.4,2425.3,0.82429]
[1751058085997,3.2078,2425.4,2425.2,5.36479583]
[1751058086197,3.2078,2425.4,2425.2,6.80379583]
[1751058086500,3.2078,2425.4,2425.3,0.82429]
[1751058088104,8.03431,2425.6,2425.4,0.82425]
[1751058089702,8.03431,2425.6,2425.5,0.82422]
[1751058090002,6.493,2425.6,2425.5,0.82421]
[1751058090396,0.82418,2425.7,2425.5,0.82421]
[1751058090597,6.493,2425.6,2425.5,0.82421]
[1751058091601,0.82418,2425.7,2425.5,0.82421]
[1751058091905,6.493,2425.6,2425.5,0.82421]
[1751058092897,7.31718,2425.7,2425.5,0.82421]
[1751058093399,6.493,2425.7,2425.6,0.82419]
[1751058093597,4.03187,2426.0,2425.8,0.82409]
[1751058093903,7.44933502,2425.9,2425.8,4.64198583]
[1751058094707,6.493,2425.9,2425.8,4.64198583]
[1751058097116,10.52486,2426.0,2425.9,0.82409]
[1751058097613,10.52486,2426.0,2425.8,4.64199583]
[1751058097814,10.52486,2426.0,2425.9,0.82409]
[1751058098416,10.52486,2426.0,2425.8,4.64199583]
[1751058098918,10.52486,2426.0,2425.8,4.64201583]
[1751058099116,0.82409,2425.9,2425.8,4.64201583]
[1751058099418,0.82409,2425.9,2425.8,3.81789583]
[1751058099812,0.82416,2425.7,2425.6,2.44994767]
[1751058100122,0.82419,2425.6,2425.5,2.44994767]
[1751058100417,0.82422,2425.5,2425.4,25.105]
[1751058103222,0.82422,2425.5,2425.3,40.8]
[1751058103418,0.82426,2425.4,2425.3,40.8]
[1751058103623,0.82426,2425.4,2425.3,65.906]
[1751058104112,0.82426,2425.4,2425.3,40.8]
[1751058104308,0.82426,2425.4,2425.3,65.906]
[1751058104824,0.82426,2425.4,2425.3,66.73029]
[1751058105120,0.82426,2425.4,2425.3,25.106]
[1751058105825,0.82426,2425.4,2425.2,48.64999583]
[1751058106121,0.82424,2425.5,2425.3,25.93028]
[1751058106317,0.82424,2425.5,2425.4,6.274328]
[1751058106518,1.53381,2425.6,2425.4,7.098578]
[1751058107112,6.492,2425.7,2425.5,2.45643217]
[1751058107319,3.2078,2426.0,2425.6,28.92389583]
[1751058107518,0.82411,2425.9,2425.8,3.81789583]
[1751058108228,0.82411,2425.9,2425.8,4.64201583]
[1751058110421,7.29407,2426.0,2425.9,0.82409]
[1751058110623,7.4259073,2426.0,2425.9,0.82409]
[1751058110825,0.9559073,2426.0,2425.9,0.82409]
[1751058111127,0.82402,2426.1,2426.0,0.82405]
[1751058111727,0.82405,2426.0,2425.9,25.105]
[1751058112427,0.82405,2426.0,2425.9,25.92909]
[1751058113026,0.82405,2426.0,2425.9,25.105]
[1751058113727,0.82405,2426.0,2425.9,25.92909]
[1751058113927,0.82404,2426.1,2425.9,25.92909]
[1751058114228,0.82405,2426.0,2425.9,25.92909]
[1751058114426,53.953,2426.2,2425.9,25.92909]
[1751058114726,54.77701,2426.2,2426.0,0.82405]
[1751058114922,0.82402,2426.1,2425.9,25.92906]
[1751058116532,3.937,2426.3,2426.2,0.82399]
[1751058116834,4.98666457,2426.3,2426.2,3.81789583]
[1751058117016,4.16271457,2426.3,2426.2,4.64188583]
[1751058117219,4.98666457,2426.3,2426.2,3.81789583]
[1751058117933,4.03175,2426.3,2426.2,3.81789583]
[1751058118421,3.2078,2426.3,2426.2,4.64188583]
[1751058118617,7.29394,2426.4,2426.2,4.64188583]
[1751058120032,6.47,2426.4,2426.1,0.7024]
[1751058120221,0.82402,2426.1,2426.0,2.45643217]
[1751058120427,0.82402,2426.1,2426.0,27.55843217]
[1751058120733,0.82402,2426.1,2426.0,28.38248217]
[1751058122229,0.82402,2426.1,2426.0,25.92605]
[1751058122436,0.82402,2426.1,2426.0,28.38248217]
[1751058123131,7.8007,2426.4,2426.1,0.82401]
[1751058123433,0.82399,2426.2,2426.1,0.82401]
[1751058123836,0.82396,2426.3,2426.2,0.82397]
[1751058124135,0.82396,2426.3,2426.2,4.64186583]
[1751058125032,7.29394,2426.4,2426.2,4.64186583]
[1751058125232,0.82395,2426.3,2426.2,3.81789583]
[1751058125432,0.82399,2426.2,2426.1,2.8949]
[1751058125637,0.82399,2426.2,2426.1,1.5464]
[1751058126233,0.82399,2426.2,2426.1,25.1]
[1751058129035,0.82399,2426.2,2426.1,25.924]
[1751058129433,0.82399,2426.2,2426.1,25.1]
[1751058130136,0.82399,2426.2,2426.1,25.92402]
[1751058130336,0.82399,2426.2,2426.1,25.1]
[1751058130533,0.82405,2426.0,2425.9,2.45643217]
[1751058130735,3.2078,2426.3,2425.9,28.37950217]
[1751058130928,0.82404,2426.1,2426.0,0.82405]
[1751058131238,0.82404,2426.1,2425.9,28.37949217]
[1751058131627,0.82405,2426.0,2425.9,28.37949217]
[1751058132636,0.82404,2426.1,2425.9,28.37949217]
[1751058132838,4.579,2426.3,2425.9,28.37949217]
[1751058133138,0.82405,2426.0,2425.9,28.37949217]
[1751058133740,0.82404,2426.1,2425.9,28.37949217]
[1751058134238,0.82405,2426.0,2425.9,28.37949217]
[1751058134443,0.82405,2426.0,2425.9,27.55543217]
[1751058135838,0.82405,2426.0,2425.9,25.099]
[1751058136240,0.82404,2426.1,2425.9,28.37952217]
[1751058136438,0.82405,2426.0,2425.9,28.37952217]
[1751058137031,1.48694,2426.1,2425.9,28.37952217]
[1751058137240,0.82399,2426.2,2426.1,0.82402]
[1751058137942,0.82402,2426.1,2426.0,0.82403]
[1751058138937,0.82402,2426.1,2426.0,1.53323]
[1751058139940,0.82402,2426.1,2426.0,1.53324]
[1751058140941,0.82402,2426.1,2426.0,3.98967217]
[1751058141138,0.82401,2426.2,2426.1,0.82401]
[1751058141343,0.82401,2426.2,2426.1,25.098]
[1751058141844,0.82401,2426.2,2426.1,25.92202]
[1751058143842,4.69466,2426.3,2426.2,0.82399]
[1751058144047,0.8239,2426.5,2426.1,34.580128]
[1751058144238,0.82392,2426.4,2426.2,7.709328]
[1751058144546,0.82392,2426.4,2426.3,69.17738217]
[1751058144841,0.82392,2426.4,2426.3,28.37738217]
[1751058145050,0.82392,2426.4,2426.3,27.55343217]
[1751058145249,0.82391,2426.5,2426.3,68.35343217]
[1751058145546,0.82391,2426.5,2426.4,0.82392]
[1751058145737,0.82391,2426.5,2426.4,0.6954]
[1751058146744,2.19227,2426.6,2426.4,1.51932]
[1751058146945,2.19227,2426.6,2426.5,0.82388]
[1751058149053,0.82388,2426.5,2426.4,1.5193]
[1751058149350,2.19226,2426.6,2426.5,0.82388]
[1751058149546,2.19226,2426.6,2426.4,1.51929]
[1751058150252,2.19226,2426.6,2426.4,1.51931]
[1751058151350,0.82388,2426.5,2426.4,1.51931]
[1751058152247,1.3684,2426.6,2426.4,1.51931]
[1751058152248,3.2078,2426.9,2426.4,4.51329583]
[1751058152455,0.8237,2427.1,2426.9,0.82375]
[1751058152652,0.82368,2427.1,2427.0,4.48149583]
[1751058152851,0.82368,2427.1,2427.0,5.30520583]
[1751058153556,0.82368,2427.1,2427.0,4.48149583]
[1751058153750,0.82368,2427.1,2427.0,5.30520583]
[1751058154052,0.82368,2427.1,2427.0,4.48149583]
[1751058156460,2.05929,2427.0,2426.4,2.45643217]
[1751058156752,2.05929,2427.0,2426.4,0.6789]
[1751058156753,0.82388,2426.5,2426.4,0.6789]
[1751058156948,0.82392,2426.4,2426.3,2.45643217]
[1751058157157,0.82395,2426.3,2426.2,25.09]
[1751058157357,1.54575,2426.3,2426.2,25.09]
[1751058157556,1.54575,2426.3,2426.1,3.2078]
[1751058157557,0.82399,2426.2,2426.1,3.2078]
[1751058157745,0.82399,2426.2,2426.1,28.2978]
[1751058158955,0.82405,2426.1,2425.9,47.753228]
[1751058159254,0.82405,2426.1,2426.0,25.09]
[1751058166462,0.7218,2426.3,2426.0,25.09]
[1751058166660,6.463,2426.3,2426.2,4.64186583]
[1751058166861,0.6844,2426.4,2426.3,0.82395]
[1751058167062,11.453,2426.8,2426.2,28.90789583]
[1751058167365,4.03163,2426.7,2426.5,4.64176583]
[1751058167564,4.03163,2426.7,2426.5,29.73176583]
[1751058167865,4.03163,2426.7,2426.5,29.73175583]
[1751058168259,0.82385,2426.6,2426.5,28.90789583]
[1751058169768,0.82385,2426.6,2426.5,25.09]
[1751058180371,0.82385,2426.6,2426.5,25.91387]
[1751058180970,3.2078,2426.7,2426.6,0.82383]
[1751058181177,7.28679,2426.8,2426.6,0.82381]
[1751058181676,7.28679,2426.8,2426.7,0.7289]
[1751058184782,8.24246491,2426.8,2426.7,0.7289]
[1751058185582,1.77946491,2426.8,2426.7,0.7289]
[1751058185784,8.24246491,2426.8,2426.7,0.7289]
[1751058185985,0.82393,2426.3,2426.2,2.45643217]
[1751058186179,0.82393,2426.3,2426.2,3.12503217]
[1751058186385,5.95638422,2426.3,2425.7,2.45643217]
[1751058186686,0.82414,2425.7,2425.6,2.45643217]
[1751058187081,0.82417,2425.6,2425.5,3.2078]
[1751058187383,3.81789583,2425.7,2425.2,46.46423217]
[1751058187384,2.0511,2425.7,2425.2,46.46423217]
[1751058187586,0.82425,2425.4,2425.3,27.54043217]
[1751058187780,0.82425,2425.4,2425.3,2.45643217]
[1751058187980,0.82427,2425.3,2425.2,46.46423217]
[1751058188283,0.82427,2425.3,2425.2,44.0078]
[1751058189483,0.82427,2425.3,2425.2,69.0938]
[1751058189889,4.03207,2425.3,2425.2,40.8]
[1751058192389,4.03207,2425.3,2425.2,65.889]
[1751058192986,4.03207,2425.3,2425.2,40.8]
[1751058193189,4.03207,2425.3,2425.2,65.889]
[1751058194287,4.03207,2425.3,2425.2,25.089]
[1751058195191,6.464,2425.4,2425.2,25.089]
[1751058195394,6.464,2425.4,2425.2,29.73120583]
[1751058195585,3.9265,2425.6,2425.2,30.25399583]
[1751058195783,3.9265,2425.6,2425.4,3.81789583]
[1751058195784,11.21168,2425.6,2425.4,3.81789583]
[1751058195985,4.75068,2425.6,2425.4,28.90789583]
[1751058196185,3.2078,2425.6,2425.4,29.73211583]
[1751058196482,4.03198,2425.6,2425.4,30.28379583]
[1751058196793,3.2078,2425.6,2425.4,31.10802583]
[1751058196987,3.2078,2425.6,2425.5,0.82421]
[1751058197290,4.03197,2425.6,2425.4,31.10801583]
[1751058197491,0.82413,2425.8,2425.5,0.82419]
[1751058197685,7.28513,2425.8,2425.5,0.82419]
[1751058197883,0.82414,2425.7,2425.5,2.20009]
[1751058198193,0.82414,2425.7,2425.6,0.7291]
[1751058198390,7.28512,2425.8,2425.6,0.7291]
[1751058198592,0.82414,2425.7,2425.6,0.7291]
[1751058207898,0.82414,2425.7,2425.6,1.55327]
[1751058208100,7.28612,2425.8,2425.7,0.82414]
[1751058209098,6.462,2425.8,2425.7,0.82414]
[1751058209295,7.2861,2425.8,2425.6,1.55325]
[1751058209592,0.82414,2425.7,2425.6,1.55327]
[1751058210701,0.82414,2425.7,2425.6,0.7291]
[1751058211398,7.28613,2425.8,2425.6,1.55327]
[1751058211796,7.28613,2425.8,2425.7,0.82415]
[1751058212299,7.28613,2425.8,2425.6,1.55326]
[1751058213603,7.28613,2425.8,2425.7,0.82415]
[1751058214304,6.403,2426.0,2425.6,7.75479583]
[1751058214602,6.462,2426.0,2425.9,3.81789583]
[1751058214807,6.462,2426.0,2425.9,4.64197583]
[1751058215004,7.28605,2426.0,2425.9,4.64197583]
[1751058215197,7.28605,2426.0,2425.9,0.82408]
[1751058215506,8.24697807,2426.0,2425.9,0.82408]
[1751058215802,7.42292807,2426.0,2425.9,0.82408]
[1751058216010,7.42292807,2426.0,2425.9,4.64197583]
[1751058216608,7.42292807,2426.0,2425.9,6.09767583]
[1751058216808,0.96092807,2426.0,2425.9,6.09767583]
[1751058217401,3.2078,2426.2,2426.1,0.82401]
[1751058217603,4.16924425,2426.2,2426.1,29.72790583]
[1751058217802,0.96144425,2426.2,2426.1,29.72790583]
[1751058218202,0.96144425,2426.2,2426.1,31.14290583]
[1751058218814,0.96144425,2426.2,2426.1,29.72790583]
[1751058221210,0.96144425,2426.2,2426.1,31.12310583]
[1751058221609,7.28492,2426.4,2426.3,0.82395]
[1751058221806,8.24266195,2426.4,2426.3,0.82395]
[1751058222211,7.28492,2426.4,2426.3,0.82395]
[1751058225013,4.03166,2426.6,2426.3,3.81789583]
[1751058225210,7.28488,2426.5,2426.4,0.82391]
[1751058225411,7.28488,2426.5,2426.3,4.64181583]
[1751058227115,7.28488,2426.5,2426.2,41.62397]
[1751058227116,6.461,2426.5,2426.2,41.62397]
[1751058227317,0.82395,2426.3,2426.2,41.62397]
[1751058227920,0.82393,2426.4,2426.3,0.82395]
[1751058229020,0.82393,2426.4,2426.2,41.62396]
[1751058229519,1.55025,2426.3,2426.2,41.62396]
[1751058229717,0.7263,2426.3,2426.2,41.62396]
[1751058230922,1.55025,2426.3,2426.2,41.62396]
[1751058231624,0.7263,2426.3,2426.2,41.62396]
[1751058232222,1.55025,2426.3,2426.2,41.62396]
[1751058234125,0.7263,2426.3,2426.2,41.62396]
[1751058236015,9.36379,2426.5,2426.4,0.82391]
[1751058236414,8.00289,2426.5,2426.4,0.82391]
[1751058238626,0.82395,2426.3,2426.2,40.8]
[1751058238829,0.82395,2426.3,2426.2,25.073]
[1751058244029,2.15293,2426.4,2426.2,25.89698]
[1751058244229,8.00289,2426.5,2426.3,4.64182583]
[1751058244526,8.00289,2426.5,2426.3,5.33662583]
[1751058244727,8.00289,2426.5,2426.4,25.07]
[1751058245122,0.82401,2426.1,2426.0,2.45643217]
[1751058245323,0.82401,2426.1,2426.0,27.52643217]
[1751058245626,0.824,2426.2,2426.0,27.52643217]
[1751058245925,0.824,2426.2,2426.1,3.81789583]
[1751058246125,0.82401,2426.1,2426.0,27.52643217]
[1751058246327,1.50821,2426.1,2426.0,28.35048217]
[1751058246727,1.50821,2426.1,2426.0,27.52643217]
[1751058247126,1.50821,2426.1,2426.0,28.35048217]
[1751058247431,1.50821,2426.1,2426.0,27.52643217]
[1751058248722,1.50821,2426.1,2426.0,2.45643217]
[1751058248922,1.50821,2426.1,2426.0,27.52543217]
[1751058249428,2.84931,2426.1,2426.0,27.52543217]
[1751058250428,0.82405,2426.0,2425.9,44.61789583]
[1751058250622,0.82405,2426.0,2425.9,40.8]
[1751058250822,0.82405,2426.0,2425.9,65.869]
[1751058255735,0.82408,2425.9,2425.8,0.6948]
[1751058256031,0.82408,2425.9,2425.8,66.5628]
[1751058257436,0.82408,2425.9,2425.8,67.38692]
[1751058258137,0.82408,2425.9,2425.8,66.5628]
[1751058258539,0.82408,2425.9,2425.8,41.4948]
[1751058258737,0.82408,2425.9,2425.8,66.5628]